fUSD/lending_fUSD_20250915
["ID","MTS","AMOUNT","RATE_DAILY","PERIOD"]
[385557084,1757896238641,-1425.0,0.00027098,2]
[385557085,1757896238651,-979.0,0.000271,2]
[385557086,1757896238660,-1425.0,0.00027101,2]
[385557087,1757896238670,-150.0,0.00027106,2]
[385557088,1757896238679,-1425.0,0.00027117,2]
[385557089,1757896238688,-6044.41579086,0.00027118,2]
[385557090,1757896238697,-150.0,0.00027124,2]
[385557091,1757896238706,-1000.0,0.00027137,2]
[385557092,1757896238715,-1786.54971643,0.00027139,2]
[385557093,1757896238724,-322.6107,0.00027139,2]
[385557094,1757896238733,-151.0,0.00027139,2]
[385557095,1757896238742,-600.0,0.00027139,2]
[385557096,1757896238751,-250.0,0.00027139,2]
[385557097,1757896238760,-500.0,0.00027139,2]
[385557098,1757896238769,-219.95201024,0.00027139,2]
[385557099,1757896238778,-250.0,0.00027139,2]
[385557100,1757896238787,-500.0,0.00027139,2]
[385557101,1757896238796,-250.0,0.00027139,2]
[385557102,1757896238805,-500.0,0.00027139,2]
[385557103,1757896238814,-250.0,0.00027139,2]
[385557104,1757896238823,-500.0,0.00027139,2]
[385557105,1757896238832,-250.0,0.00027139,2]
[385557106,1757896238845,-250.0,0.00027139,2]
[385557107,1757896238855,-500.0,0.00027139,2]
[385557108,1757896238864,-250.0,0.00027139,2]
[385557109,1757896238873,-500.0,0.00027139,2]
[385557110,1757896238884,-250.0,0.00027139,2]
[385557111,1757896238895,-500.0,0.00027139,2]
[385557112,1757896238904,-250.0,0.00027139,2]
[385557113,1757896238914,-151.0,0.00027139,2]
[385557114,1757896238924,-500.0,0.00027139,2]
[385557115,1757896238933,-250.0,0.00027139,2]
[385557116,1757896238943,-500.0,0.00027139,2]
[385557117,1757896238952,-500.0,0.00027139,2]
[385557118,1757896238961,-250.0,0.00027139,2]
[385557119,1757896238970,-500.0,0.00027139,2]
[385557120,1757896238979,-160.0,0.00027139,2]
[385557121,1757896238989,-151.0,0.00027139,2]
[385557122,1757896239001,-151.0,0.00027139,2]
[385557123,1757896239010,-151.0,0.00027139,2]
[385557124,1757896239019,-151.0,0.00027139,2]
[385557125,1757896239028,-151.0,0.00027139,2]
[385557126,1757896239037,-1000.0,0.00027139,2]
[385557127,1757896239046,-1000.0,0.00027139,2]
[385557128,1757896239055,-151.0,0.00027139,2]
[385557129,1757896239064,-1000.0,0.00027139,2]
[385557130,1757896239073,-151.0,0.00027139,2]
[385557131,1757896239083,-500.0,0.00027139,2]
[385557132,1757896239094,-151.0,0.00027139,2]
[385557133,1757896239103,-500.0,0.00027139,2]
[385557134,1757896239112,-1000.0,0.00027139,2]
[385557135,1757896239122,-151.0,0.00027139,2]
[385557136,1757896239131,-500.0,0.00027139,2]
[385557137,1757896239140,-1000.0,0.00027139,2]
[385557138,1757896239148,-151.0,0.00027139,2]
[385557139,1757896239157,-500.0,0.00027139,2]
[385557140,1757896239166,-1000.0,0.00027139,2]
[385557141,1757896239175,-151.0,0.00027139,2]
[385557142,1757896239184,-317.07180827,0.00027139,2]
[385557143,1757896239193,-1000.0,0.00027139,2]
[385557144,1757896239202,-1000.0,0.00027139,2]
[385557145,1757896239211,-1000.0,0.00027139,2]
[385557146,1757896239220,-1000.0,0.00027139,2]
[385557147,1757896239229,-500.0,0.00027139,2]
[385557148,1757896239238,-1000.0,0.00027139,2]
[385557149,1757896239247,-500.0,0.00027139,2]
[385557150,1757896239256,-500.0,0.00027139,2]
[385557151,1757896239265,-500.0,0.00027139,2]
[385557152,1757896239274,-500.0,0.00027139,2]
[385557153,1757896239283,-500.0,0.00027139,2]
[385557154,1757896239292,-500.0,0.00027139,2]
[385557155,1757896239301,-151.0,0.00027139,2]
[385557156,1757896239311,-151.0,0.00027139,2]
[385557157,1757896239320,-151.0,0.00027139,2]
[385557158,1757896239329,-151.0,0.00027139,2]
[385557159,1757896239339,-151.0,0.00027139,2]
[385557160,1757896239349,-151.0,0.00027139,2]
[385557161,1757896239358,-151.0,0.00027139,2]
[385557162,1757896239367,-1000.0,0.00027139,2]
[385557163,1757896239377,-298.17148204,0.00027139,2]
[385557164,1757896239387,-1000.0,0.00027139,2]
[385557165,1757896239398,-500.0,0.00027139,2]
[385557166,1757896239411,-1000.0,0.00027139,2]
[385557167,1757896239440,-500.0,0.00027139,2]
[385557168,1757896239488,-1000.0,0.00027139,2]
[385557169,1757896239509,-500.0,0.00027139,2]
[385557170,1757896239519,-500.0,0.00027139,2]
[385557171,1757896239528,-500.0,0.00027139,2]
[385557172,1757896239537,-500.0,0.00027139,2]
[385557173,1757896239546,-500.0,0.00027139,2]
[385557174,1757896239555,-500.0,0.00027139,2]
[385557175,1757896239564,-500.0,0.00027139,2]
[385557176,1757896239573,-439.95014587,0.00027139,2]
[385557177,1757896239583,-250.0,0.00027139,2]
[385557178,1757896239592,-250.0,0.00027139,2]
[385557179,1757896239601,-250.0,0.00027139,2]
[385557180,1757896239611,-365.23433338,0.00027139,2]
[385557181,1757896239621,-151.0,0.00027145,7]
[385557182,1757896239632,-151.0,0.00027145,7]
[385557183,1757896239641,-24218.4970753,0.00027146,2]
[385557184,1757896239651,-1425.0,0.00027149,2]
[385557185,1757896239659,-1425.0,0.00027153,2]
[385557186,1757896239669,-630.44614808,0.00027154,2]
[385557187,1757896239678,-185.53968002,0.00027154,2]
[385557188,1757896239687,-217.61931804,0.00027154,2]
[385557189,1757896239696,-26599.4134,0.00027155,2]
[385557190,1757896239705,-1000.0,0.00027155,2]
[385557191,1757896239714,-5000.0,0.00027155,2]
[385557192,1757896239723,-191436.7264,0.00027156,2]
[385557193,1757896239732,-151.0,0.00027156,7]
[385557194,1757896239742,-151.0,0.00027156,7]
[385557195,1757896239750,-741.65244732,0.00027166,2]
[385557196,1757896239759,-150.0,0.00027169,2]
[385557197,1757896239769,-455.07747036,0.00027173,2]
[385557198,1757896239778,-464.45693669,0.00027173,2]
[385557199,1757896239788,-500.0,0.00027173,2]
[385557200,1757896239798,-500.0,0.00027173,2]
[385557201,1757896239807,-150.0,0.00027181,2]
[385557202,1757896239816,-1000.0,0.00027184,2]
[385557203,1757896239826,-1425.0,0.00027192,2]
[385557204,1757896239835,-1425.0,0.00027195,2]
[385557205,1757896239844,-1425.0,0.00027197,2]
[385557206,1757896239854,-269.56198477,0.00027199,2]
[385557207,1757896239863,-386.952476,0.000272,2]
[385557208,1757896239872,-12109.2485377,0.00027203,2]
[385557209,1757896239881,-12109.2485377,0.00027208,2]
[385557210,1757896239890,-1425.0,0.00027209,2]
[385557211,1757896239901,-1425.0,0.00027213,2]
[385557212,1757896239910,-150.0,0.00027216,2]
[385557213,1757896239920,-23747.0151436,0.00027217,2]
[385557214,1757896239929,-151.0,0.00027217,7]
[385557215,1757896239938,-151.0,0.00027217,7]
[385557216,1757896239951,-1425.0,0.00027218,2]
[385557217,1757896239961,-150.44,0.00027224,2]
[385557218,1757896239971,-150.44,0.00027225,2]
[385557219,1757896239980,-1425.0,0.00027228,2]
[385557220,1757896239989,-1425.0,0.00027231,2]
[385557221,1757896240007,-1191.66,0.00027233,2]
[385557222,1757896240023,-23980.06009987,0.00027234,2]
[385557223,1757896240033,-1425.0,0.00027234,2]
[385557224,1757896240043,-12109.2485377,0.00027235,2]
[385557225,1757896240053,-151.0,0.00027235,7]
[385557226,1757896240063,-261.49248,0.00027235,7]
[385557227,1757896240071,-766673.50962665,0.00027235,2]
[385557228,1757896240081,-242184.970753,0.00027235,2]
[385557229,1757896240091,-1425.0,0.00027238,2]
[385557230,1757896240100,-1425.0,0.00027241,2]
[385557231,1757896240110,-151.0,0.00027245,7]
[385557232,1757896240119,-1000.0,0.0002725,2]
[385557233,1757896240129,-6370.16433368,0.0002725,2]
[385557234,1757896240138,-1000.0,0.00027253,2]
[385557235,1757896240148,-200.0,0.00027255,2]
[385557236,1757896240156,-152.0,0.00027255,3]
[385557237,1757896240166,-1425.0,0.00027255,2]
[385557238,1757896240175,-154.0,0.00027255,3]
[385557239,1757896240185,-155.0,0.00027255,3]
[385557240,1757896240203,-155.0,0.00027255,3]
[385557242,1757896240212,-547.0,0.00027255,3]
[385557244,1757896240222,-152.0,0.00027255,3]
[385557246,1757896240231,-152.0,0.00027255,3]
[385557248,1757896240240,-1425.0,0.00027263,2]
[385557250,1757896240250,-500.0,0.00027265,2]
[385557252,1757896240259,-500.0,0.00027265,2]
[385557254,1757896240268,-500.0,0.00027265,2]
[385557256,1757896240277,-500.0,0.00027265,2]
[385557258,1757896240287,-500.0,0.00027265,2]
[385557260,1757896240296,-500.0,0.00027265,2]
[385557262,1757896240306,-417.58485697,0.00027265,2]
[385557265,1757896240316,-500.0,0.00027266,2]
[385557267,1757896240325,-1166.66666,0.0002727,2]
[385557269,1757896240335,-331.86326659,0.00027273,2]
[385557271,1757896240344,-500.0,0.00027273,2]
[385557272,1757896240353,-1425.0,0.00027273,2]
[385557274,1757896240363,-500.0,0.00027275,2]
[385557276,1757896240372,-1425.0,0.00027275,2]
[385557278,1757896240381,-150.44,0.00027287,2]
[385557281,1757896240391,-1425.0,0.00027289,2]
[385557283,1757896240401,-150.0,0.00027294,2]
[385557285,1757896240410,-252.12534322,0.00027294,2]
[385557286,1757896240420,-206.94491019,0.00027294,2]
[385557289,1757896240429,-500.0,0.00027294,2]
[385557291,1757896240439,-150.0,0.00027294,2]
[385557293,1757896240448,-150.0,0.00027294,2]
[385557295,1757896240458,-200.0,0.00027294,2]
[385557297,1757896240468,-1425.0,0.00027294,2]
[385557299,1757896240477,-500.0,0.00027294,2]
[385557301,1757896240486,-150.0,0.00027294,2]
[385557303,1757896240495,-150.0,0.00027294,2]
[385557305,1757896240504,-150.0,0.00027294,2]
[385557307,1757896240513,-500.0,0.00027294,2]
[385557309,1757896240523,-500.0,0.00027294,2]
[385557311,1757896240532,-500.0,0.00027294,2]
[385557313,1757896240541,-535.0,0.00027294,2]
[385557315,1757896240551,-150.0,0.00027294,2]
[385557317,1757896240560,-500.0,0.00027294,2]
[385557319,1757896240569,-150.0,0.00027294,2]
[385557321,1757896240579,-203.5933526,0.00027294,2]
[385557323,1757896240589,-150.0,0.00027294,2]
[385557325,1757896240598,-9092.7832,0.00027297,2]
[385557327,1757896240607,-159.64659243,0.00027297,2]
[385557329,1757896240616,-1425.0,0.00027299,2]
[385557331,1757896240625,-471.86,0.000273,2]
[385557333,1757896240635,-1425.0,0.00027304,2]
[385557335,1757896240644,-268.80203259,0.00027304,2]
[385557337,1757896240653,-462.05873684,0.00027307,2]
[385557339,1757896240663,-6044.41579082,0.00027321,2]
[385557341,1757896240672,-1425.0,0.00027327,2]
[385557343,1757896240683,-362.36006835,0.00027339,2]
[385557345,1757896240692,-1425.0,0.00027366,2]
[385557347,1757896240701,-500.0,0.0002737,2]
[385557349,1757896240711,-150.0,0.0002737,2]
[385557351,1757896240721,-150.0,0.0002737,2]
[385557353,1757896240730,-500.0,0.00027373,2]
[385557355,1757896240740,-500.0,0.00027373,2]
[385557357,1757896240749,-250.0,0.00027373,2]
[385557359,1757896240759,-500.60517922,0.00027373,2]
[385557361,1757896240767,-208.5138143,0.00027376,2]
[385557363,1757896240777,-1425.0,0.00027385,2]
[385557365,1757896240787,-150.44,0.00027387,2]
[385557367,1757896240796,-150.44,0.00027387,2]
[385557369,1757896240805,-150.44,0.00027387,2]
[385557371,1757896240814,-151.0,0.00027387,2]
[385557373,1757896240824,-158.73631157,0.00027387,2]
[385557375,1757896240834,-1000.0,0.00027387,2]
[385557377,1757896240844,-1000.0,0.00027387,2]
[385557379,1757896240854,-1000.0,0.00027387,2]
[385557381,1757896240863,-1000.0,0.00027387,2]
[385557383,1757896240873,-1000.0,0.00027387,2]
[385557385,1757896240882,-1000.0,0.00027387,2]
[385557387,1757896240891,-1000.0,0.00027387,2]
[385557389,1757896240900,-1000.0,0.00027387,2]
[385557391,1757896240910,-1000.0,0.00027387,2]
[385557393,1757896240919,-1000.0,0.00027387,2]
[385557395,1757896240928,-1000.0,0.00027387,2]
[385557397,1757896240937,-1000.0,0.00027387,2]
[385557399,1757896240947,-1000.0,0.00027387,2]
[385557401,1757896240956,-910.24713121,0.00027387,2]
[385557403,1757896240965,-1425.0,0.00027393,2]
[385557405,1757896240975,-392.09,0.00027394,2]
[385557407,1757896240984,-167.02,0.00027394,2]
[385557409,1757896240994,-500.0,0.00027396,2]
[385557411,1757896241005,-500.0,0.00027396,2]
[385557413,1757896241015,-500.0,0.00027396,2]
[385557415,1757896241025,-500.0,0.00027396,2]
[385557417,1757896241034,-506441.46999449,0.00027397,2]
[385557418,1757896241044,-160.0,0.00027397,7]
[385557419,1757896241053,-160.0,0.00027397,7]
[385557420,1757896241063,-400.0,0.00027397,7]
[385557421,1757896241072,-400.0,0.00027397,7]
[385557422,1757896241081,-400.0,0.00027397,7]
[385557423,1757896241091,-400.0,0.00027397,7]
[385557424,1757896241100,-400.0,0.00027397,7]
[385557425,1757896241110,-400.0,0.00027397,7]
[385557426,1757896241119,-400.0,0.00027397,7]
[385557427,1757896241128,-400.0,0.00027397,7]
[385557428,1757896241137,-400.0,0.00027397,7]
[385557429,1757896241146,-463.70027396,0.00027397,7]
[385557431,1757896241156,-400.0,0.00027397,7]
[385557432,1757896241165,-400.0,0.00027397,7]
[385557433,1757896241174,-400.0,0.00027397,7]
[385557434,1757896241184,-400.0,0.00027397,7]
[385557436,1757896241193,-400.0,0.00027397,7]
[385557438,1757896241203,-400.0,0.00027397,7]
[385557440,1757896241212,-400.0,0.00027397,7]
[385557443,1757896241222,-400.0,0.00027397,7]
[385557445,1757896241231,-400.0,0.00027397,7]
[385557446,1757896241240,-400.0,0.00027397,7]
[385557448,1757896241250,-400.0,0.00027397,7]
[385557450,1757896241259,-400.0,0.00027397,7]
[385557452,1757896241268,-400.0,0.00027397,7]
[385557455,1757896241457,-400.0,0.00027397,7]
[385557456,1757896241467,-400.0,0.00027397,7]
[385557457,1757896241476,-400.0,0.00027397,7]
[385557458,1757896241486,-400.0,0.00027397,7]
[385557459,1757896241495,-400.0,0.00027397,7]
[385557460,1757896241503,-400.0,0.00027397,7]
[385557461,1757896241512,-400.0,0.00027397,7]
[385557462,1757896241521,-400.0,0.00027397,7]
[385557463,1757896241531,-300.01970373,0.00027397,7]
[385557464,1757896241539,-400.0,0.00027397,7]
[385557465,1757896241550,-400.0,0.00027397,7]
[385557466,1757896241559,-400.0,0.00027397,7]
[385557467,1757896241570,-400.0,0.00027397,7]
[385557468,1757896241580,-233.86887712,0.00027397,7]
[385557469,1757896241590,-400.0,0.00027397,7]
[385557470,1757896241599,-400.0,0.00027397,7]
[385557471,1757896241609,-400.0,0.00027397,7]
[385557472,1757896241618,-400.0,0.00027397,7]
[385557473,1757896241628,-400.0,0.00027397,7]
[385557474,1757896241638,-400.0,0.00027397,7]
[385557475,1757896241647,-400.0,0.00027397,7]
[385557476,1757896241656,-400.0,0.00027397,7]
[385557477,1757896241666,-400.0,0.00027397,7]
[385557478,1757896241676,-400.0,0.00027397,7]
[385557479,1757896241685,-400.0,0.00027397,7]
[385557480,1757896241695,-413.59,0.00027397,7]
[385557481,1757896241704,-415.05963473,0.00027397,7]
[385557482,1757896241715,-400.0,0.00027397,7]
[385557483,1757896241725,-400.0,0.00027397,7]
[385557484,1757896241736,-400.0,0.00027397,7]
[385557485,1757896241745,-400.0,0.00027397,7]
[385557486,1757896241755,-400.0,0.00027397,7]
[385557487,1757896241765,-500.0,0.00027397,7]
[385557488,1757896241774,-400.0,0.00027397,7]
[385557489,1757896241785,-362.60038665,0.00027397,7]
[385557490,1757896241798,-400.0,0.00027397,7]
[385557491,1757896241807,-400.0,0.00027397,7]
[385557492,1757896241818,-400.0,0.00027397,7]
[385557493,1757896241829,-400.0,0.00027397,7]
[385557494,1757896241840,-400.0,0.00027397,7]
[385557495,1757896241851,-425.28,0.00027397,7]
[385557496,1757896241859,-400.0,0.00027397,7]
[385557497,1757896241869,-400.0,0.00027397,7]
[385557498,1757896241878,-400.0,0.00027397,7]
[385557499,1757896241887,-400.0,0.00027397,7]
[385557500,1757896241896,-400.0,0.00027397,7]
[385557501,1757896241905,-400.0,0.00027397,7]
[385557502,1757896241914,-499.43278741,0.00027397,7]
[385557503,1757896241923,-400.0,0.00027397,7]
[385557504,1757896241932,-404.3285376,0.00027397,7]
[385557505,1757896241941,-400.0,0.00027397,7]
[385557506,1757896241951,-400.0,0.00027397,7]
[385557507,1757896241959,-400.0,0.00027397,7]
[385557508,1757896241968,-400.0,0.00027397,7]
[385557509,1757896241977,-400.0,0.00027397,7]
[385557510,1757896241987,-400.0,0.00027397,7]
[385557511,1757896241997,-400.0,0.00027397,7]
[385557512,1757896242007,-400.0,0.00027397,7]
[385557513,1757896242016,-400.0,0.00027397,7]
[385557514,1757896242026,-400.0,0.00027397,7]
[385557515,1757896242035,-400.0,0.00027397,7]
[385557516,1757896242047,-400.0,0.00027397,7]
[385557517,1757896242055,-400.0,0.00027397,7]
[385557518,1757896242065,-400.0,0.00027397,7]
[385557519,1757896242077,-400.0,0.00027397,7]
[385557520,1757896242088,-400.0,0.00027397,7]
[385557521,1757896242097,-400.0,0.00027397,7]
[385557522,1757896242107,-400.0,0.00027397,7]
[385557523,1757896242118,-400.0,0.00027397,7]
[385557524,1757896242128,-400.0,0.00027397,7]
[385557525,1757896242138,-400.0,0.00027397,7]
[385557526,1757896242149,-400.0,0.00027397,7]
[385557527,1757896242162,-580.59,0.00027397,7]
[385557528,1757896242172,-400.0,0.00027397,7]
[385557529,1757896242182,-505.16031471,0.00027397,7]
[385557530,1757896242191,-378.62900151,0.00027397,7]
[385557531,1757896242201,-400.0,0.00027397,7]
[385557532,1757896242212,-400.0,0.00027397,7]
[385557533,1757896242224,-400.0,0.00027397,7]
[385557534,1757896242234,-165.62896601,0.00027397,7]
[385557535,1757896242244,-400.0,0.00027397,7]
[385557536,1757896242255,-400.0,0.00027397,7]
[385557537,1757896242266,-400.0,0.00027397,7]
[385557538,1757896242277,-400.0,0.00027397,7]
[385557539,1757896242288,-400.0,0.00027397,7]
[385557540,1757896242297,-400.0,0.00027397,7]
[385557541,1757896242307,-400.0,0.00027397,7]
[385557542,1757896242316,-400.0,0.00027397,7]
[385557543,1757896242326,-400.0,0.00027397,7]
[385557544,1757896242338,-400.0,0.00027397,7]
[385557545,1757896242348,-400.0,0.00027397,7]
[385557546,1757896242358,-400.0,0.00027397,7]
[385557547,1757896242369,-400.0,0.00027397,7]
[385557548,1757896242380,-400.0,0.00027397,7]
[385557549,1757896242391,-400.0,0.00027397,7]
[385557550,1757896242402,-400.0,0.00027397,7]
[385557551,1757896242413,-400.0,0.00027397,7]
[385557553,1757896242423,-400.0,0.00027397,7]
[385557555,1757896242435,-400.0,0.00027397,7]
[385557558,1757896242447,-400.0,0.00027397,7]
[385557560,1757896242458,-400.0,0.00027397,7]
[385557562,1757896242469,-400.0,0.00027397,7]
[385557564,1757896242481,-400.0,0.00027397,7]
[385557567,1757896242492,-400.0,0.00027397,7]
[385557569,1757896242502,-400.0,0.00027397,7]
[385557571,1757896242513,-400.0,0.00027397,7]
[385557573,1757896242523,-400.0,0.00027397,7]
[385557575,1757896242534,-655.01,0.00027397,7]
[385557577,1757896242543,-400.0,0.00027397,7]
[385557579,1757896242554,-400.0,0.00027397,7]
[385557581,1757896242564,-400.0,0.00027397,7]
[385557583,1757896242575,-400.0,0.00027397,7]
[385557585,1757896242586,-400.0,0.00027397,7]
[385557587,1757896242595,-400.0,0.00027397,7]
[385557590,1757896242609,-400.0,0.00027397,7]
[385557592,1757896242620,-400.0,0.00027397,7]
[385557594,1757896242630,-400.0,0.00027397,7]
[385557596,1757896242640,-400.0,0.00027397,7]
[385557597,1757896242650,-400.0,0.00027397,7]
[385557598,1757896242660,-400.0,0.00027397,7]
[385557599,1757896242670,-400.0,0.00027397,7]
[385557602,1757896242683,-400.0,0.00027397,7]
[385557603,1757896242693,-400.0,0.00027397,7]
[385557605,1757896242703,-400.0,0.00027397,7]
[385557607,1757896242713,-400.0,0.00027397,7]
[385557608,1757896242722,-400.0,0.00027397,7]
[385557609,1757896242732,-400.0,0.00027397,7]
[385557610,1757896242742,-400.0,0.00027397,7]
[385557611,1757896242751,-400.0,0.00027397,7]
[385557612,1757896242761,-400.0,0.00027397,7]
[385557613,1757896242771,-400.0,0.00027397,7]
[385557614,1757896242781,-400.0,0.00027397,7]
[385557615,1757896242791,-400.0,0.00027397,7]
[385557616,1757896242801,-403.38,0.00027397,7]
[385557617,1757896242811,-400.0,0.00027397,7]
[385557618,1757896242821,-400.0,0.00027397,7]
[385557619,1757896242831,-412.37033153,0.00027397,7]
[385557620,1757896242843,-400.0,0.00027397,7]
[385557621,1757896242852,-400.0,0.00027397,7]
[385557622,1757896242863,-400.0,0.00027397,7]
[385557623,1757896242872,-400.0,0.00027397,7]
[385557624,1757896242882,-400.0,0.00027397,7]
[385557625,1757896242892,-400.0,0.00027397,7]
[385557626,1757896242902,-400.0,0.00027397,7]
[385557627,1757896242911,-400.0,0.00027397,7]
[385557628,1757896242921,-400.0,0.00027397,7]
[385557629,1757896242932,-400.0,0.00027397,7]
[385557630,1757896242943,-400.0,0.00027397,7]
[385557631,1757896242954,-400.0,0.00027397,7]
[385557632,1757896242966,-400.0,0.00027397,7]
[385557633,1757896242976,-400.0,0.00027397,7]
[385557634,1757896242989,-400.0,0.00027397,7]
[385557635,1757896243005,-400.0,0.00027397,7]
[385557636,1757896243015,-400.0,0.00027397,7]
[385557637,1757896243024,-400.0,0.00027397,7]
[385557638,1757896243034,-400.0,0.00027397,7]
[385557639,1757896243043,-400.0,0.00027397,7]
[385557640,1757896243053,-400.0,0.00027397,7]
[385557641,1757896243066,-400.0,0.00027397,7]
[385557642,1757896243076,-474.23802776,0.00027397,7]
[385557643,1757896243087,-460.91,0.00027397,7]
[385557644,1757896243097,-400.0,0.00027397,7]
[385557645,1757896243107,-400.0,0.00027397,7]
[385557646,1757896243116,-400.0,0.00027397,7]
[385557647,1757896243126,-400.0,0.00027397,7]
[385557648,1757896243136,-400.0,0.00027397,7]
[385557649,1757896243145,-400.0,0.00027397,7]
[385557650,1757896243155,-400.0,0.00027397,7]
[385557651,1757896243164,-434.82874188,0.00027397,7]
[385557652,1757896243174,-400.0,0.00027397,7]
[385557653,1757896243184,-400.0,0.00027397,7]
[385557654,1757896243193,-400.0,0.00027397,7]
[385557655,1757896243204,-419.6726094,0.00027397,7]
[385557656,1757896243215,-400.0,0.00027397,7]
[385557657,1757896243224,-400.0,0.00027397,7]
[385557658,1757896243233,-400.0,0.00027397,7]
[385557659,1757896243243,-400.0,0.00027397,7]
[385557660,1757896243252,-400.0,0.00027397,7]
[385557661,1757896243262,-400.0,0.00027397,7]
[385557662,1757896243271,-400.0,0.00027397,7]
[385557663,1757896243281,-400.0,0.00027397,7]
[385557664,1757896243290,-150.0,0.00027397,2]
[385557665,1757896243300,-400.0,0.00027397,7]
[385557666,1757896243309,-400.0,0.00027397,7]
[385557667,1757896243319,-400.0,0.00027397,7]
[385557668,1757896243328,-297.14136543,0.00027397,7]
[385557669,1757896243338,-400.0,0.00027397,7]
[385557670,1757896243348,-400.0,0.00027397,7]
[385557671,1757896243357,-374.94971157,0.00027397,7]
[385557672,1757896243366,-400.0,0.00027397,7]
[385557673,1757896243376,-400.0,0.00027397,7]
[385557675,1757896243386,-400.0,0.00027397,7]
[385557677,1757896243395,-461.76,0.00027397,7]
[385557679,1757896243405,-400.0,0.00027397,7]
[385557681,1757896243415,-400.0,0.00027397,7]
[385557683,1757896243425,-500.0,0.00027397,2]
[385557685,1757896243435,-500.0,0.00027397,2]
[385557686,1757896243444,-400.0,0.00027397,7]
[385557688,1757896243454,-627.82,0.00027397,2]
[385557690,1757896243463,-400.0,0.00027397,7]
[385557692,1757896243473,-400.0,0.00027397,7]
[385557694,1757896243483,-400.0,0.00027397,7]
[385557696,1757896243492,-400.0,0.00027397,7]
[385557699,1757896243502,-400.0,0.00027397,7]
[385557703,1757896243514,-400.0,0.00027397,7]
[385557706,1757896243527,-262.88763946,0.00027397,7]
[385557708,1757896243536,-471.70202209,0.00027397,7]
[385557710,1757896243546,-530.71,0.00027397,7]
[385557712,1757896243556,-400.0,0.00027397,7]
[385557714,1757896243567,-400.0,0.00027397,7]
[385557716,1757896243577,-405.52,0.00027397,7]
[385557718,1757896243588,-400.0,0.00027397,7]
[385557720,1757896243598,-400.0,0.00027397,7]
[385557722,1757896243608,-400.0,0.00027397,7]
[385557724,1757896243617,-403.83,0.00027397,7]
[385557726,1757896243627,-400.0,0.00027397,7]
[385557728,1757896243637,-400.0,0.00027397,7]
[385557730,1757896243647,-400.0,0.00027397,7]
[385557732,1757896243656,-448.57,0.00027397,7]
[385557734,1757896243666,-400.0,0.00027397,7]
[385557736,1757896243676,-400.0,0.00027397,7]
[385557739,1757896243686,-400.0,0.00027397,7]
[385557741,1757896243696,-400.0,0.00027397,7]
[385557743,1757896243706,-500.0,0.00027397,7]
[385557745,1757896243715,-416.36596555,0.00027397,7]
[385557747,1757896243724,-400.0,0.00027397,7]
[385557749,1757896243734,-400.0,0.00027397,7]
[385557751,1757896243743,-400.0,0.00027397,7]
[385557753,1757896243753,-400.0,0.00027397,7]
[385557755,1757896243763,-400.0,0.00027397,7]